fUSD/lending_fUSD_20240218
["ID","MTS","AMOUNT","RATE_DAILY","PERIOD"]
[314377799,1708246252878,-278.43890283,0.00036694,2]
[314377800,1708246252887,-500.0,0.00036694,2]
[314377801,1708246252896,-500.0,0.00036694,2]
[314377802,1708246252906,-500.0,0.00036694,2]
[314377803,1708246252916,-500.0,0.00036694,2]
[314377804,1708246252925,-1000.0,0.00036698,2]
[314377805,1708246252935,-150.0,0.00036699,2]
[314377806,1708246252945,-6982.39311,0.000367,2]
[314377807,1708246252956,-178.0856967,0.00036707,2]
[314377808,1708246252967,-150.0,0.00036708,2]
[314377809,1708246252979,-3196.12226987,0.00036713,9]
[314377810,1708246252988,-500.0,0.00036714,2]
[314377811,1708246252998,-500.0,0.00036714,2]
[314377812,1708246253007,-500.0,0.00036714,2]
[314377813,1708246253017,-500.0,0.00036714,2]
[314377814,1708246253028,-500.0,0.00036714,2]
[314377815,1708246253039,-291.5788,0.00036714,2]
[314377816,1708246253050,-1000.0,0.00036714,2]
[314377817,1708246253060,-1000.0,0.00036714,2]
[314377818,1708246253070,-1000.0,0.00036714,2]
[314377819,1708246253079,-1000.0,0.00036714,2]
[314377820,1708246253088,-1000.0,0.00036714,2]
[314377821,1708246253098,-1000.0,0.00036714,2]
[314377822,1708246253107,-1000.0,0.00036714,2]
[314377823,1708246253116,-1000.0,0.00036714,2]
[314377824,1708246253126,-1000.0,0.00036714,2]
[314377825,1708246253135,-1000.0,0.00036714,2]
[314377826,1708246253144,-1000.0,0.00036714,2]
[314377827,1708246253154,-1000.0,0.00036714,2]
[314377828,1708246253163,-1000.0,0.00036714,2]
[314377829,1708246253172,-1000.0,0.00036714,2]
[314377830,1708246253181,-1000.0,0.00036714,2]
[314377831,1708246253191,-1000.0,0.00036714,2]
[314377832,1708246253201,-755.2464,0.00036714,2]
[314377833,1708246253210,-500.0,0.00036714,2]
[314377834,1708246253221,-500.0,0.00036714,2]
[314377835,1708246253231,-500.0,0.00036714,2]
[314377836,1708246253241,-500.0,0.00036714,2]
[314377837,1708246253250,-500.0,0.00036714,2]
[314377838,1708246253260,-500.0,0.00036714,2]
[314377839,1708246253272,-500.0,0.00036714,2]
[314377840,1708246253282,-557.001,0.00036714,2]
[314377841,1708246253293,-150.0,0.00036717,2]
[314377842,1708246253303,-150.0,0.00036717,2]
[314377843,1708246253314,-150.0,0.00036751,2]
[314377844,1708246253324,-300.0,0.00036774,2]
[314377845,1708246253334,-10633.90183161,0.00036782,2]
[314377846,1708246253343,-646068.64123712,0.00036792,2]
[314377847,1708246253753,-400.9103181,0.00036792,2]
[314377848,1708246253770,-480.52702895,0.00036271,2]
[314377849,1708246253779,-3661.64208145,0.00036792,2]
[314377850,1708246253790,-574.98736815,0.00036792,2]
[314377851,1708246253803,-648.5229323,0.00036792,2]
[314377852,1708246253832,-500.0,0.00036169,2]
[314377853,1708246253842,-284.20550947,0.00036792,2]
[314377854,1708246253889,-504.41827202,0.00036169,2]
[314377855,1708246253899,-500.0,0.00036169,2]
[314377856,1708246253909,-500.0,0.0003627,2]
[314377857,1708246253918,-4192.92160752,0.00036792,2]
[314377858,1708246253934,-775.72526,0.00036792,2]
[314377859,1708246253945,-3097.94804565,0.00036792,2]
[314377860,1708246254079,-500.0,0.00036169,2]
[314377861,1708246254088,-204.83081519,0.00036169,2]
[314377862,1708246254101,-295.16918481,0.00036169,2]
[314377863,1708246254110,-500.0,0.00036693,2]
[314377864,1708246254119,-1800.51209704,0.00036792,2]
[314377865,1708246254132,-6728.32388199,0.00036792,2]
[314377866,1708246254143,-73243.56771952,0.00036792,2]
[314377867,1708246254155,-7711.01597676,0.00036792,2]
[314377868,1708246254180,-40580.3861346,0.00036792,2]
[314377869,1708246254191,-878.49394085,0.00036792,2]
[314377870,1708246254208,-8475.00278379,0.00036792,2]
[314377871,1708246254220,-15005.07972921,0.00036792,2]
[314377872,1708246254235,-302154.86229339,0.00036792,2]
[314377873,1708246254246,-4619.97756426,0.00036792,2]
[314377874,1708246254257,-11566.46524237,0.00036792,2]
[314377875,1708246254274,-5126.75614442,0.00036792,2]
[314377876,1708246254291,-2221.12170991,0.00036792,2]
[314377877,1708246254303,-40661.08926022,0.00036792,2]
[314377878,1708246254462,-500.0,0.00035899,2]
[314377879,1708246254472,-613.25004538,0.00036169,2]
[314377880,1708246254481,-3984.72457958,0.00036792,2]
[314377881,1708246254496,-524.99026738,0.00036169,2]
[314377882,1708246254505,-2587.72878566,0.00036792,2]
[314377883,1708246270220,64877.51055967,0.00023,2]
[314377884,1708246384039,31800.22967143,0.000225,2]
[314377885,1708246419007,332.76288222,0.0002313,2]
[314377886,1708246432263,3667.23711778,0.00023,2]
[314377887,1708246432288,4000.0,0.00023,2]
[314377888,1708246432314,4000.0,0.00023,2]
[314377889,1708246432339,4000.0,0.00023,2]
[314377890,1708246432374,324635.19440748,0.00023,2]
[314377891,1708246565102,355.25169603,0.00024001,2]
[314377892,1708246732435,154.37804064,0.00024976,2]
[314377894,1708246865097,355.25169603,0.00024001,2]
[314377899,1708247082157,-808.90122499,0.00025053,2]
[314377900,1708247082177,-155.0,0.00025054,2]
[314377901,1708247082196,-1048.05810516,0.00025054,2]
[314377902,1708247082216,-155.0,0.00025055,2]
[314377903,1708247082235,-211.99520263,0.00025056,2]
[314377904,1708247082255,-5590.26445904,0.00025057,2]
[314377905,1708247082274,-2152.79175909,0.00025059,2]
[314377906,1708247082294,-14892.59067724,0.00025062,5]
[314377907,1708247082315,-2500.0,0.0002509,2]
[314377908,1708247082335,-7955.99198215,0.0002509,2]
[314377909,1708247094386,-9686.00002161,0.000263,2]
[314377910,1708247094409,-156.2448,0.00026897,2]
[314377911,1708247094433,-1048.05810516,0.00027999,2]
[314377912,1708247094458,-93639.10366293,0.00028,2]
[314377913,1708247098716,5590.26445904,0.00020999,2]
[314377915,1708247106132,-808.90122499,0.00027998,2]
[314377916,1708247106157,-155.0,0.00027998,2]
[314377917,1708247106183,-241.73148947,0.00027999,2]
[314377918,1708247106207,-357.66561059,0.00027999,2]
[314377919,1708247106232,-18436.70167495,0.00028,2]
[314377920,1708247123801,-508.94184375,0.00027998,2]
[314377921,1708247123822,-5590.26445904,0.00027999,2]
[314377922,1708247123843,-3900.79369721,0.00028,2]
[314377924,1708247142710,5590.26445904,0.00020999,2]
[314377926,1708247159201,5590.26445904,0.00020999,2]
[314377927,1708247175483,5590.26445904,0.00020999,2]
[314377928,1708247191203,5590.26445904,0.00020999,2]
[314377931,1708247209214,5590.26445904,0.00020999,2]
[314377933,1708247225717,5590.26445904,0.00020999,2]
[314377936,1708247243724,5590.26445904,0.00020999,2]
[314377939,1708247261713,2481.89071,0.00020999,2]
[314377948,1708247433950,-808.90122499,0.00027993,2]
[314377949,1708247433959,-2152.79175909,0.00027994,2]
[314377950,1708247433969,-300.0,0.00027999,2]
[314377951,1708247433978,-416522.87910981,0.00028,2]
[314377952,1708247433987,-173.21153012,0.0003115,5]
[314377953,1708247433995,-206.0,0.0003125,2]
[314377954,1708247434005,-205.0,0.0003125,2]
[314377955,1708247434014,-279.32,0.00032118,2]
[314377956,1708247434023,-3676.84,0.0003315,2]
[314377957,1708247434031,-499.99,0.0003335,2]
[314377958,1708247434040,-163.45,0.0003365,10]
[314377959,1708247434049,-732.92,0.00033999,2]
[314377960,1708247434058,-250.0,0.00034002,2]
[314377961,1708247434067,-216.63,0.00034201,2]
[314377962,1708247434075,-161.7,0.00034205,2]
[314377963,1708247434085,-150.97,0.00034248,2]
[314377964,1708247434094,-279.32,0.00034382,2]
[314377965,1708247434102,-158.29,0.00034391,2]
[314377966,1708247434111,-152.0,0.00034406,3]
[314377967,1708247434120,-150.97,0.00034533,2]
[314377968,1708247434129,-173.21153012,0.00034545,7]
[314377969,1708247434138,-1000.0,0.00034639,2]
[314377970,1708247434147,-158.29,0.00034774,2]
[314377971,1708247434159,-2663.43522491,0.000348,7]
[314377972,1708247434168,-543.80334245,0.000348,2]
[314377973,1708247434181,-160.61049748,0.000348,2]
[314377974,1708247434190,-150.97,0.00034819,2]
[314377975,1708247434199,-261.24342849,0.00034899,15]
[314377976,1708247434208,-408298.10952714,0.000349,2]
[314377977,1708247434221,-465857.73489457,0.000349,2]
[314377978,1708247434233,-109204.25802665,0.000349,2]
[314377979,1708247434250,-2849.21446487,0.000349,2]
[314377980,1708247434262,-835.08299887,0.000349,2]
[314377981,1708247434274,-704.69831091,0.000349,2]
[314377982,1708247434310,-155.0,0.00027992,2]
[314377983,1708247434319,-5019.65,0.000349,2]
[314377998,1708247440273,-4295.9824655,0.000349,2]
[314377999,1708247440384,-12123.29477654,0.000349,2]
[314378001,1708247440396,-103834.25382925,0.000349,2]
[314378005,1708247440496,-3772.4134673,0.000349,2]
[314378006,1708247440553,-30428.98008323,0.000349,2]
[314378007,1708247440563,-152.45809041,0.000349,2]
[314378008,1708247440572,-895.7560469,0.000349,2]
[314378009,1708247440581,-429.08214379,0.00035,4]
[314378010,1708247440591,-2663.43522489,0.00035085,7]
[314378011,1708247440600,-150.97,0.00035104,2]
[314378012,1708247440609,-158.29,0.00035156,2]
[314378014,1708247440619,-14770.0,0.00035289,2]
[314378016,1708247440628,-157.87,0.00035342,2]
[314378018,1708247440637,-2663.43522489,0.00035371,8]
[314378020,1708247440646,-150.97,0.00035389,2]
[314378021,1708247440655,-1000.0,0.00035516,2]
[314378023,1708247440664,-543.80334242,0.00035525,2]
[314378025,1708247440673,-160.61049746,0.00035525,2]
[314378026,1708247440681,-158.29,0.00035538,2]
[314378027,1708247440690,-1000.0,0.000356,2]
[314378028,1708247440700,-577.87588356,0.00035616,2]
[314378029,1708247440709,-534.35499473,0.00035616,2]
[314378030,1708247440717,-500.0,0.00035616,2]
[314378031,1708247440726,-500.0,0.00035616,2]
[314378032,1708247440735,-194.58659101,0.00035616,2]
[314378033,1708247440744,-500.0,0.00035616,2]
[314378034,1708247440752,-389.5817159,0.00035616,2]
[314378035,1708247440761,-542.68209491,0.00035616,2]
[314378036,1708247440770,-500.0,0.00035616,2]
[314378037,1708247440779,-500.0,0.00035616,2]
[314378039,1708247440800,-500.0,0.00035616,2]
[314378040,1708247440810,-500.0,0.00035616,2]
[314378041,1708247440820,-428.33347033,0.00035616,2]
[314378043,1708247440829,-500.0,0.00035616,2]
[314378045,1708247440841,-500.0,0.00035616,2]
[314378047,1708247440851,-500.0,0.00035616,2]
[314378049,1708247440861,-530.42558284,0.00035616,2]
[314378051,1708247440872,-490.77170119,0.00035616,2]
[314378053,1708247440882,-507.95551878,0.00035616,2]
[314378055,1708247440892,-500.0,0.00035616,2]
[314378057,1708247440901,-500.0,0.00035616,2]
[314378060,1708247440911,-531.85878828,0.00035616,2]
[314378062,1708247440921,-500.0,0.00035616,2]
[314378064,1708247440931,-500.0,0.00035616,2]
[314378066,1708247440940,-500.0,0.00035616,2]
[314378068,1708247440949,-500.0,0.00035616,2]
[314378070,1708247440959,-500.0,0.00035616,2]
[314378072,1708247440969,-500.0,0.00035616,2]
[314378074,1708247440978,-500.0,0.00035616,2]
[314378076,1708247440988,-500.0,0.00035616,2]
[314378078,1708247440997,-500.0,0.00035616,2]
[314378080,1708247441007,-500.0,0.00035616,7]
[314378082,1708247441017,-500.0,0.00035616,7]
[314378084,1708247441026,-500.0,0.00035616,2]
[314378086,1708247441035,-500.0,0.00035616,2]
[314378088,1708247441044,-500.0,0.00035616,2]
[314378090,1708247441054,-500.0,0.00035616,2]
[314378092,1708247441063,-500.0,0.00035616,2]
[314378094,1708247441073,-500.0,0.00035616,2]
[314378096,1708247441082,-500.0,0.00035616,2]
[314378098,1708247441093,-500.0,0.00035616,2]
[314378100,1708247441102,-500.0,0.00035616,2]
[314378102,1708247441112,-500.0,0.00035616,2]
[314378104,1708247441121,-500.0,0.00035616,2]
[314378106,1708247441131,-500.0,0.00035616,2]
[314378108,1708247441140,-546.31968852,0.00035616,2]
[314378110,1708247441152,-500.0,0.00035616,2]
[314378112,1708247441162,-500.0,0.00035616,2]
[314378114,1708247441171,-500.0,0.00035616,2]
[314378116,1708247441181,-500.0,0.00035616,2]
[314378118,1708247441190,-500.0,0.00035616,2]
[314378120,1708247441201,-500.0,0.00035616,2]
[314378123,1708247441212,-500.0,0.00035616,2]
[314378125,1708247441221,-500.0,0.00035616,2]
[314378127,1708247441231,-500.0,0.00035616,2]
[314378129,1708247441240,-500.0,0.00035616,2]
[314378130,1708247441249,-500.0,0.00035616,2]
[314378133,1708247441259,-500.0,0.00035616,2]
[314378135,1708247441269,-523.30952919,0.00035616,2]
[314378137,1708247441280,-500.0,0.00035616,2]
[314378139,1708247441289,-500.0,0.00035616,2]
[314378141,1708247441299,-500.0,0.00035616,2]
[314378143,1708247441308,-500.0,0.00035616,2]
[314378145,1708247441318,-500.0,0.00035616,2]
[314378147,1708247441328,-500.0,0.00035616,2]
[314378149,1708247441337,-500.0,0.00035616,2]
[314378151,1708247441347,-500.0,0.00035616,2]
[314378153,1708247441357,-500.0,0.00035616,2]
[314378155,1708247441367,-631.64606381,0.00035616,2]
[314378157,1708247441376,-500.0,0.00035616,2]
[314378159,1708247441385,-500.0,0.00035616,2]
[314378161,1708247441395,-500.0,0.00035616,2]
[314378163,1708247441404,-500.0,0.00035616,2]
[314378165,1708247441414,-500.0,0.00035616,2]
[314378167,1708247441424,-500.0,0.00035616,2]
[314378169,1708247441433,-500.0,0.00035616,2]
[314378194,1708247441648,-552.61398195,0.00035616,2]
[314378196,1708247441657,-500.0,0.00035616,2]
[314378198,1708247441667,-556.34796917,0.00035616,2]
[314378200,1708247441676,-498.99786525,0.00035616,2]
[314378202,1708247441685,-500.0,0.00035616,2]
[314378204,1708247441694,-500.0,0.00035616,2]
[314378206,1708247441703,-150.0,0.00035616,2]
[314378208,1708247441712,-150.0,0.00035616,2]
[314378210,1708247441721,-327.72108124,0.00035616,2]
[314378213,1708247441738,-241.83936208,0.00035616,2]
[314378215,1708247441747,-44.99740956,0.00035616,2]
[314378217,1708247441760,-455.00259044,0.00035616,2]
[314378219,1708247441769,-500.0,0.00035616,2]
[314378221,1708247441779,-500.0,0.00035616,2]
[314378223,1708247441787,-282.61673185,0.00035616,2]
[314378225,1708247441800,-306.34362193,0.00035616,2]
[314378227,1708247441809,-500.0,0.00035616,2]
[314378229,1708247441818,-355.32826634,0.00035616,2]
[314378231,1708247441828,-533.87529548,0.00035616,2]
[314378234,1708247441838,-380.99,0.00035616,2]
[314378236,1708247441847,-377.73850801,0.00035616,2]
[314378238,1708247441856,-500.0,0.00035616,2]
[314378240,1708247441866,-532.86511459,0.00035616,2]
[314378242,1708247441875,-500.0,0.00035616,2]
[314378244,1708247441884,-301.93689558,0.00035616,2]
[314378246,1708247441893,-500.0,0.00035616,2]
[314378248,1708247441902,-116.69875995,0.00035616,2]
[314378250,1708247441914,-383.30124005,0.00035616,2]
[314378252,1708247441923,-500.0,0.00035616,2]
[314378254,1708247441933,-548.07860365,0.00035616,2]
[314378256,1708247441942,-500.0,0.00035616,2]
[314378258,1708247441951,-83.15441467,0.00035616,2]
[314378260,1708247441962,-428.43250908,0.00035616,2]
[314378262,1708247441971,-41.06749127,0.00035616,2]
[314378264,1708247441983,-458.93250873,0.00035616,2]
[314378266,1708247441992,-209.23430599,0.00035616,2]
[314378269,1708247442008,-290.76569401,0.00035616,2]
[314378271,1708247442017,-531.29852366,0.00035616,2]
[314378273,1708247442026,-546.96129113,0.00035616,2]
[314378275,1708247442035,-569.40853215,0.00035616,2]
[314378277,1708247442045,-500.0,0.00035616,2]
[314378279,1708247442054,-500.0,0.00035616,2]
[314378281,1708247442063,-500.0,0.00035616,2]
[314378283,1708247442073,-500.0,0.00035616,2]
[314378285,1708247442082,-500.0,0.00035616,2]
[314378287,1708247442091,-500.0,0.00035616,2]
[314378289,1708247442100,-500.0,0.00035616,2]
[314378291,1708247442111,-475.68152928,0.00035616,2]
[314378293,1708247442120,-546.66689023,0.00035616,2]
[314378295,1708247442129,-500.0,0.00035616,2]
[314378297,1708247442138,-500.0,0.00035616,2]
[314378299,1708247442148,-500.0,0.00035616,2]
[314378301,1708247442159,-446.08465265,0.00035616,2]
[314378303,1708247442168,-500.0,0.00035616,2]
[314378305,1708247442177,-500.0,0.00035616,2]
[314378307,1708247442187,-500.0,0.00035616,2]
[314378309,1708247442197,-500.0,0.00035616,2]
[314378312,1708247442206,-500.0,0.00035616,2]
[314378314,1708247442215,-567.92900427,0.00035616,2]
[314378316,1708247442224,-500.0,0.00035616,2]
[314378318,1708247442234,-500.0,0.00035616,2]
[314378320,1708247442243,-500.0,0.00035616,2]
[314378321,1708247442253,-63.62344063,0.00035616,2]
[314378324,1708247442266,-355.12996767,0.00035616,2]
[314378334,1708247442344,-81.2465917,0.00035616,2]
[314378336,1708247442353,-500.0,0.00035616,2]
[314378338,1708247442363,-500.0,0.00035616,2]
[314378340,1708247442372,-14.12672817,0.00035616,2]
[314378342,1708247442384,-386.11580395,0.00035616,2]
[314378344,1708247442395,-99.75746788,0.00035616,2]
[314378346,1708247442405,-209.28933115,0.00035616,2]
[314378348,1708247442417,-290.71066885,0.00035616,2]
[314378351,1708247442426,-46.4278646,0.00035616,2]
[314378353,1708247442437,-322.87653265,0.00035616,2]
[314378356,1708247442457,-130.69560275,0.00035616,2]
[314378358,1708247442466,-500.0,0.00035616,2]
[314378360,1708247442475,-500.0,0.00035616,2]
[314378362,1708247442484,-500.0,0.00035616,2]
[314378364,1708247442493,-500.0,0.00035616,2]
[314378366,1708247442502,-500.0,0.00035616,2]
[314378368,1708247442511,-51.28523048,0.00035616,2]
[314378370,1708247442522,-304.10934302,0.00035616,2]
[314378372,1708247442534,-144.6054265,0.00035616,2]
[314378374,1708247442543,-500.0,0.00035616,2]
[314378376,1708247442552,-211.93332174,0.00035616,2]
[314378379,1708247442563,-288.06667826,0.00035616,2]
[314378381,1708247442572,-475.19089284,0.00035616,2]
[314378383,1708247442583,-77.11469947,0.00035616,2]
[314378385,1708247442593,-283.09530053,0.00035616,2]
[314378428,1708247442931,-1940.8120818,0.00034899,2]
[314378430,1708247442941,-216.90469947,0.00035616,2]
[314378432,1708247442951,-500.0,0.00035616,2]
[314378434,1708247442961,-500.0,0.00035616,2]
[314378437,1708247442971,-275.07111873,0.00035616,2]
[314378449,1708247443166,-224.92888127,0.00035616,2]
[314378451,1708247443176,-367.14139301,0.00035616,2]
[314378825,1708247447592,-1086.81546544,0.00035615,4]
[314378826,1708247447602,-1758.20240822,0.00035615,4]
[314378827,1708247447766,-581.05730804,0.00035615,4]
[314378828,1708247447823,-553.16683146,0.00035615,4]
[314378829,1708247447833,-5.86488713,0.00035616,2]
[314378830,1708247447842,-281.71228141,0.00035616,2]
[314378838,1708247448058,-218.28771859,0.00035616,2]
[314378839,1708247448068,-500.0,0.00035616,2]
[314378841,1708247448077,-500.0,0.00035616,2]
[314378842,1708247448086,-576.12799854,0.00035616,2]
[314378844,1708247448096,-570.85495615,0.00035616,2]
[314378846,1708247448105,-500.0,0.00035616,2]
[314378848,1708247448114,-500.0,0.00035616,2]
[314378849,1708247448123,-500.0,0.00035616,2]
[314378851,1708247448133,-500.0,0.00035616,2]
[314378853,1708247448142,-817.64962032,0.00035616,2]
[314378855,1708247448153,-536.80415839,0.00035616,2]
[314378857,1708247448164,-500.0,0.00035616,2]
[314378859,1708247448173,-500.0,0.00035616,2]
[314378861,1708247448182,-513.66888968,0.00035616,2]
[314378863,1708247448192,-500.0,0.00035616,2]
[314378864,1708247448202,-645.24084413,0.00035616,2]
[314378866,1708247448211,-500.0,0.00035616,2]
[314378868,1708247448220,-500.0,0.00035616,2]
[314378869,1708247448229,-500.0,0.00035616,2]
[314378870,1708247448239,-500.0,0.00035616,2]
[314378871,1708247448249,-500.0,0.00035616,2]
[314378872,1708247448258,-516.7381414,0.00035616,2]
[314378873,1708247448269,-513.14849852,0.00035616,2]
[314378874,1708247448278,-500.0,0.00035616,2]
[314378875,1708247448287,-500.0,0.00035616,2]
[314378876,1708247448296,-500.0,0.00035616,2]
[314378877,1708247448306,-534.47091792,0.00035616,2]
[314378878,1708247448315,-500.0,0.00035616,2]
[314378879,1708247448326,-500.0,0.00035616,2]
[314378880,1708247448335,-176.71622785,0.00035616,2]
[314378881,1708247448345,-594.57,0.00035616,2]
[314378882,1708247448354,-594.57,0.00035616,2]
[314378883,1708247448364,-500.0,0.00035616,2]
[314378884,1708247448373,-500.0,0.00035616,2]
[314378885,1708247448382,-500.0,0.00035616,2]
[314378886,1708247448391,-501.58069433,0.00035616,2]
[314378887,1708247448400,-500.0,0.00035616,2]
[314378888,1708247448410,-546.86079888,0.00035616,2]
[314378889,1708247448419,-500.0,0.00035616,2]
[314378890,1708247448428,-500.0,0.00035616,2]
[314378891,1708247448437,-450.95125267,0.00035616,2]
[314378892,1708247448446,-500.0,0.00035616,2]
[314378893,1708247448455,-561.53574121,0.00035616,2]
[314378894,1708247448464,-500.0,0.00035616,2]
[314378895,1708247448473,-500.0,0.00035616,2]
[314378896,1708247448482,-500.0,0.00035616,2]
[314378897,1708247448491,-500.0,0.00035616,2]
[314378898,1708247448501,-500.0,0.00035616,2]
[314378899,1708247448510,-495.58900302,0.00035616,2]
[314378900,1708247448519,-500.0,0.00035616,2]
[314378901,1708247448528,-500.0,0.00035616,2]
[314378902,1708247448537,-500.0,0.00035616,2]
[314378903,1708247448579,-500.0,0.00035616,2]
[314378904,1708247448588,-500.0,0.00035616,2]
[314378905,1708247448598,-500.0,0.00035616,2]
[314378906,1708247448607,-500.0,0.00035616,2]
[314378907,1708247448616,-500.0,0.00035616,2]
[314378908,1708247448625,-419.76845481,0.00035616,2]
[314378909,1708247448634,-500.0,0.00035616,2]
[314378910,1708247448644,-500.0,0.00035616,2]
[314378911,1708247448653,-500.0,0.00035616,2]
[314378912,1708247448662,-500.0,0.00035616,2]
[314378913,1708247448671,-500.0,0.00035616,2]
[314378914,1708247448680,-500.0,0.00035616,2]
[314378915,1708247448688,-500.0,0.00035616,2]
[314378916,1708247448697,-500.0,0.00035616,2]
[314378917,1708247448706,-500.0,0.00035616,2]
[314378918,1708247448715,-500.0,0.00035616,2]
[314378919,1708247448724,-500.0,0.00035616,2]
[314378920,1708247448734,-500.0,0.00035616,2]
[314378921,1708247448742,-460.38723053,0.00035616,2]
[314378922,1708247448751,-500.0,0.00035616,2]
[314378923,1708247448762,-500.0,0.00035616,2]
[314378924,1708247448771,-500.0,0.00035616,2]
[314378925,1708247448780,-500.0,0.00035616,2]
[314378926,1708247448789,-536.0688926,0.00035616,2]
[314378927,1708247448798,-500.0,0.00035616,2]
[314378928,1708247448807,-500.0,0.00035616,2]
[314378929,1708247448816,-500.0,0.00035616,2]
[314378930,1708247448825,-526.43234531,0.00035616,2]
[314378931,1708247448835,-500.0,0.00035616,2]
[314378932,1708247448844,-500.0,0.00035616,2]
[314378933,1708247448853,-500.0,0.00035616,2]
[314378934,1708247448863,-500.0,0.00035616,2]
[314378935,1708247448872,-594.07784731,0.00035616,2]
[314378936,1708247448882,-1599.93,0.00035616,2]
[314378937,1708247448891,-1599.93,0.00035616,2]
[314378938,1708247448901,-500.0,0.00035616,2]
[314378939,1708247448910,-588.16523353,0.00035616,2]
[314378940,1708247448919,-500.0,0.00035616,2]
[314378941,1708247448928,-500.0,0.00035616,2]
[314378942,1708247448937,-500.0,0.00035616,2]
[314378943,1708247448946,-500.0,0.00035616,2]
[314378944,1708247448956,-500.0,0.00035616,2]
[314378945,1708247448965,-500.0,0.00035616,2]
[314378946,1708247448975,-500.0,0.00035616,2]
[314378947,1708247448984,-500.0,0.00035616,2]
[314378948,1708247448993,-500.0,0.00035616,2]
[314378949,1708247449002,-500.0,0.00035616,2]
[314378950,1708247449012,-500.0,0.00035616,2]
[314378951,1708247449022,-500.0,0.00035616,2]
[314378952,1708247449031,-500.0,0.00035616,2]
[314378953,1708247449040,-500.0,0.00035616,2]
[314378954,1708247449049,-500.0,0.00035616,2]
[314378955,1708247449059,-500.0,0.00035616,2]
[314378956,1708247449068,-500.0,0.00035616,2]
[314378957,1708247449078,-500.0,0.00035616,2]
[314378958,1708247449087,-538.71,0.00035616,2]
[314378959,1708247449097,-538.71,0.00035616,2]
[314378960,1708247449106,-500.0,0.00035616,2]
[314378961,1708247449115,-500.0,0.00035616,2]
[314378962,1708247449124,-500.0,0.00035616,2]
[314378963,1708247449133,-500.0,0.00035616,2]
[314378964,1708247449143,-500.0,0.00035616,2]
[314378965,1708247449155,-500.0,0.00035616,2]
[314378966,1708247449167,-500.0,0.00035616,2]
[314378967,1708247449176,-500.0,0.00035616,2]
[314378968,1708247449185,-500.0,0.00035616,2]
[314378969,1708247449195,-570.79754287,0.00035616,2]
[314378970,1708247449205,-500.0,0.00035616,2]
[314378971,1708247449214,-500.0,0.00035616,2]
[314378972,1708247449224,-500.0,0.00035616,2]
[314378973,1708247449233,-500.0,0.00035616,2]
[314378974,1708247449242,-573.23709741,0.00035616,2]
[314378975,1708247449252,-500.0,0.00035616,2]
[314378976,1708247449261,-500.0,0.00035616,2]
[314378977,1708247449270,-500.0,0.00035616,2]
[314378978,1708247449279,-500.0,0.00035616,2]
[314378979,1708247449288,-500.0,0.00035616,2]
[314378980,1708247449297,-500.0,0.00035616,2]
[314378981,1708247449306,-538.91372198,0.00035616,2]
[314378982,1708247449315,-500.0,0.00035616,2]
[314378983,1708247449324,-500.0,0.00035616,2]
[314378984,1708247449333,-500.0,0.00035616,2]
[314378985,1708247449344,-444.79095048,0.00035616,2]
[314378986,1708247449353,-500.0,0.00035616,2]
[314378987,1708247449362,-500.0,0.00035616,2]
[314378988,1708247449371,-500.0,0.00035616,2]
[314378989,1708247449381,-500.0,0.00035616,2]
[314378990,1708247449390,-500.0,0.00035616,2]